bitfinex/quotes_BTCUSD_20241023
["timestamp","ask_amount","ask_price","bid_price","bid_amount"]
[1729699322154,0.67068678,66261.0,66260.0,0.000823]
[1729699324475,0.49534786,66261.0,66260.0,0.000823]
[1729699324688,0.49034786,66261.0,66260.0,0.000823]
[1729699324913,0.66568678,66261.0,66260.0,0.000823]
[1729699326199,0.01122605,66261.0,66260.0,0.000823]
[1729699326426,0.16214405,66261.0,66260.0,0.000823]
[1729699326647,0.150918,66261.0,66260.0,0.000823]
[1729699326897,0.301819,66265.0,66260.0,0.000823]
[1729699326898,0.16214205,66262.0,66260.0,0.000823]
[1729699327097,0.01122227,66262.0,66260.0,0.000823]
[1729699327312,0.01122227,66262.0,66261.0,0.18033892]
[1729699327552,0.01122227,66262.0,66261.0,0.155918]
[1729699327766,0.150908,66266.0,66260.0,0.000823]
[1729699327978,0.301809,66267.0,66260.0,0.005823]
[1729699328196,0.150911,66264.0,66260.0,0.005823]
[1729699328410,0.15091,66265.0,66260.0,0.005823]
[1729699328836,0.301823,66264.0,66260.0,0.000823]
[1729699329048,0.150916,66262.0,66260.0,0.000823]
[1729699329299,0.16213827,66262.0,66260.0,0.000823]
[1729699329569,0.01122227,66262.0,66260.0,0.000823]
[1729699329776,0.150918,66261.0,66260.0,0.000823]
[1729699330862,0.32625692,66261.0,66260.0,0.000823]
[1729699331069,0.47676073,66261.0,66260.0,0.000823]
[1729699331284,0.48798093,66261.0,66260.0,0.000823]
[1729699331943,0.58798093,66261.0,66260.0,0.000823]
[1729699333841,0.57676073,66261.0,66260.0,0.000823]
[1729699334701,0.58797949,66261.0,66260.0,0.000823]
[1729699334907,0.59919877,66261.0,66260.0,0.000823]
[1729699335987,0.77953769,66261.0,66260.0,0.000823]
[1729699336191,0.92831893,66261.0,66260.0,0.000823]
[1729699336616,0.92631893,66261.0,66260.0,1.000823]
[1729699336835,0.75098001,66261.0,66260.0,1.000823]
[1729699337085,0.94931893,66261.0,66260.0,1.000823]
[1729699337403,0.77398001,66261.0,66260.0,1.000823]
[1729699337622,0.95131893,66261.0,66260.0,1.000823]
[1729699337845,0.77398871,66261.0,66260.0,1.000823]
[1729699342127,0.74598871,66261.0,66260.0,1.000823]
[1729699342412,0.41264979,66261.0,66260.0,1.000823]
[1729699342683,0.01122798,66261.0,66260.0,1.000823]
[1729699343185,0.01122798,66261.0,66260.0,0.000823]
[1729699343677,0.01122798,66261.0,66260.0,0.151743]
[1729699343919,0.01122798,66261.0,66260.0,0.000823]
[1729699344925,0.19345058,66261.0,66260.0,0.000823]
[1729699345197,0.34482222,66261.0,66260.0,0.000823]
[1729699346831,0.31351762,66261.0,66260.0,0.000823]
[1729699347672,0.01209581,66261.0,66260.0,0.000823]
[1729699348107,0.151741,66261.0,66260.0,0.000823]
[1729699348315,0.01209977,66261.0,66260.0,0.000823]
[1729699348525,0.16301777,66261.0,66260.0,0.000823]
[1729699348975,0.17429459,66261.0,66260.0,0.000823]
[1729699351801,0.16301777,66261.0,66260.0,0.000823]
[1729699352004,0.17428855,66261.0,66260.0,0.000823]
[1729699355068,0.25255254,66261.0,66260.0,0.000823]
[1729699355379,0.50305635,66261.0,66260.0,0.000823]
[1729699355872,0.54819916,66261.0,66260.0,0.000823]
[1729699356104,0.55947094,66261.0,66260.0,0.000823]
[1729699356345,0.53692339,66261.0,66260.0,0.000823]
[1729699358854,0.54392339,66261.0,66260.0,0.000823]
[1729699359088,0.60989046,66261.0,66260.0,0.000823]
[1729699359523,0.56492339,66261.0,66260.0,0.000823]
[1729699359754,0.63237399,66261.0,66260.0,0.000823]
[1729699360223,0.63437399,66261.0,66260.0,0.000823]
[1729699360454,0.56692339,66261.0,66260.0,0.000823]
[1729699360663,0.74226231,66261.0,66260.0,0.000823]
[1729699361133,0.74193146,66261.0,66260.0,0.000823]
[1729699361636,0.90903146,66261.0,66260.0,0.000823]
[1729699361883,0.98793146,66261.0,66260.0,0.000823]
[1729699362113,0.98793146,66261.0,66252.0,0.001644]
[1729699362114,0.70227492,66253.0,66252.0,0.001644]
[1729699362324,0.95416274,66253.0,66252.0,0.001644]
[1729699362556,0.97676489,66253.0,66252.0,0.001644]
[1729699362789,0.90917927,66253.0,66252.0,0.001644]
[1729699362997,0.90917927,66253.0,66250.0,4e-05]
[1729699362998,0.157941,66251.0,66250.0,4e-05]
[1729699363253,0.64630934,66251.0,66250.0,4e-05]
[1729699363475,0.64830934,66251.0,66250.0,4e-05]
[1729699363682,0.82364826,66251.0,66250.0,4e-05]
[1729699364153,0.150984,66232.0,66231.0,0.22659637]
[1729699364385,0.58808446,66232.0,66231.0,0.22659637]
[1729699364622,0.58808446,66232.0,66216.0,0.22659637]
[1729699364623,0.301998,66226.0,66216.0,0.22659637]
[1729699364854,0.301998,66226.0,66216.0,0.23159637]
[1729699364855,0.17533892,66224.0,66216.0,0.23159637]
[1729699365083,0.302018,66221.0,66216.0,0.005]
[1729699365373,0.15050381,66220.0,66216.0,0.005]
[1729699365603,0.16176154,66220.0,66216.0,0.005]
[1729699365838,0.01125773,66219.0,66216.0,0.005]
[1729699366073,0.15050381,66218.0,66216.0,0.005]
[1729699366504,0.31275249,66218.0,66216.0,0.005]
[1729699366724,0.16173549,66218.0,66216.0,0.005]
[1729699367391,0.01123168,66218.0,66216.0,0.005]
[1729699367599,0.22659637,66222.0,66216.0,0.005]
[1729699367930,0.08949567,66221.0,66216.0,0.005]
[1729699368290,0.01123168,66220.0,66216.0,0.005]
[1729699368498,0.01123168,66221.0,66216.0,0.005]
[1729699368708,0.01123168,66220.0,66216.0,0.005]
[1729699368933,0.16224168,66221.0,66216.0,0.005]
[1729699369165,0.151018,66217.0,66216.0,0.005]
[1729699369843,0.01123168,66218.0,66216.0,0.005]
[1729699370046,0.30152081,66218.0,66216.0,0.005]
[1729699370269,0.16224968,66217.0,66216.0,0.005]
[1729699370530,0.151036,66209.0,66208.0,0.03973677]
[1729699370739,0.41664341,66209.0,66208.0,0.03973677]
[1729699371181,0.42787509,66209.0,66208.0,0.03973677]
[1729699371821,0.41277149,66209.0,66208.0,0.03973677]
[1729699372256,0.58077149,66209.0,66208.0,0.03973677]
[1729699372459,0.78411041,66209.0,66208.0,0.03973677]
[1729699372926,0.77411041,66209.0,66208.0,0.03973677]
[1729699374040,0.60611041,66209.0,66208.0,0.03973677]
[1729699376935,0.6172845,66209.0,66208.0,0.03973677]
[1729699377148,0.60605282,66209.0,66208.0,0.03973677]
[1729699377813,0.69085282,66209.0,66208.0,0.03973677]
[1729699378280,0.85055282,66209.0,66208.0,0.03973677]
[1729699379668,0.85055282,66209.0,66208.0,0.04055977]
[1729699380145,0.85054656,66209.0,66208.0,0.04055977]
[1729699381977,0.85254656,66209.0,66208.0,0.04055977]
[1729699382475,1.02788548,66209.0,66208.0,0.03826749]
[1729699382712,1.02788548,66209.0,66200.0,4e-05]
[1729699382713,0.251089,66186.0,66180.0,0.000823]
[1729699382928,0.61370846,66186.0,66180.0,0.000823]
[1729699383152,0.60254063,66186.0,66180.0,0.000823]
[1729699383407,0.61370955,66186.0,66180.0,0.000823]
[1729699384115,0.63670955,66186.0,66180.0,0.000823]
[1729699384592,0.64137553,66186.0,66180.0,0.000823]
[1729699386751,0.63020661,66186.0,66180.0,0.000823]
[1729699386971,0.64138335,66186.0,66180.0,0.000823]
[1729699387652,0.82372227,66186.0,66180.0,0.000823]
[1729699387886,0.65755987,66186.0,66180.0,0.000823]
[1729699389160,0.45422095,66186.0,66180.0,0.000823]
[1729699389378,0.29846597,66186.0,66180.0,0.000823]
[1729699389602,0.43837845,66186.0,66180.0,0.000823]
[1729699389818,3.43837845,66186.0,66180.0,0.000823]
[1729699390261,3.44956807,66186.0,66180.0,0.000823]
[1729699390691,3.53276807,66186.0,66180.0,0.000823]
[1729699390907,3.55576807,66186.0,66180.0,0.000823]
[1729699391820,3.47256807,66186.0,66180.0,0.000823]
[1729699392962,0.46137845,66186.0,66180.0,0.000823]
[1729699394091,0.43576955,66186.0,66180.0,0.000823]
[1729699394527,0.41276955,66186.0,66185.0,0.079954]
[1729699394787,0.16226574,66186.0,66185.0,0.079954]
[1729699395022,0.02239142,66186.0,66185.0,0.079954]
[1729699395278,0.02239142,66186.0,66185.0,0.084954]
[1729699395774,0.02239142,66186.0,66185.0,0.236045]
[1729699396003,0.02239142,66186.0,66185.0,0.084954]
[1729699396983,0.01121468,66186.0,66185.0,0.084954]
[1729699398598,0.151081,66190.0,66186.0,0.005]
[1729699399054,0.01124607,66189.0,66186.0,0.005]
[1729699400185,0.06769368,66188.0,66186.0,0.005]
[1729699400418,0.01124607,66187.0,66186.0,0.005]
[1729699400668,0.16233307,66187.0,66186.0,0.005]
[1729699400894,0.16233307,66187.0,66185.0,0.000854]
[1729699400895,0.151089,66186.0,66185.0,0.000854]
[1729699401119,0.35355688,66186.0,66185.0,0.000854]
[1729699401601,0.45355688,66186.0,66185.0,0.000854]
[1729699402496,0.44231081,66186.0,66185.0,0.000854]
[1729699402716,0.45357899,66186.0,66185.0,0.000854]
[1729699404298,0.45357899,66186.0,66165.0,4e-05]
[1729699404299,0.256135,66166.0,66165.0,4e-05]
[1729699404530,0.73838754,66166.0,66165.0,4e-05]
[1729699404764,0.256137,66165.0,66161.0,4e-05]
[1729699404984,0.44090899,66165.0,66161.0,4e-05]
[1729699405208,0.45862699,66165.0,66161.0,4e-05]
[1729699405449,0.41290899,66165.0,66161.0,4e-05]
[1729699405676,0.11126818,66165.0,66161.0,4e-05]
[1729699405931,0.251137,66165.0,66161.0,4e-05]
[1729699406165,0.26239555,66165.0,66161.0,4e-05]
[1729699406384,0.11125855,66165.0,66161.0,4e-05]
[1729699406650,0.26239555,66165.0,66161.0,4e-05]
[1729699406833,0.11125855,66165.0,66161.0,0.00504]
[1729699407058,0.26239555,66165.0,66161.0,0.00504]
[1729699407535,0.01125855,66165.0,66161.0,0.00504]
[1729699407756,0.01125855,66165.0,66163.0,0.005]
[1729699407974,0.16239555,66165.0,66163.0,0.005]
[1729699409149,0.01125855,66165.0,66164.0,0.005854]
[1729699409762,0.01125855,66165.0,66164.0,0.015854]
[1729699410870,0.31125855,66165.0,66164.0,0.015854]
[1729699411315,0.31125855,66165.0,66164.0,0.010854]
[1729699411532,0.46239555,66165.0,66164.0,0.000854]
[1729699411799,0.63773447,66165.0,66164.0,0.005854]
[1729699412016,0.88823828,66165.0,66164.0,0.000854]
[1729699412702,0.89323828,66165.0,66164.0,0.000854]
[1729699412922,0.88823828,66165.0,66164.0,0.000854]
[1729699413174,1.0915772,66165.0,66164.0,0.000854]
[1729699413622,0.91623828,66165.0,66164.0,0.000854]
[1729699413855,1.1366392,66165.0,66164.0,0.000854]
[1729699414065,1.1386392,66165.0,66164.0,0.000854]
[1729699414281,0.91623828,66165.0,66164.0,0.000854]
[1729699414508,0.71289936,66165.0,66164.0,0.000854]
[1729699416466,0.61289936,66165.0,66164.0,0.000854]
[1729699417598,0.46239555,66165.0,66164.0,0.000854]
[1729699417817,0.56239555,66165.0,66164.0,0.000854]
[1729699419293,0.93949573,66165.0,66164.0,0.000854]
[1729699419569,0.71289936,66165.0,66164.0,0.000854]
[1729699424062,0.56239555,66165.0,66164.0,0.000854]
[1729699424787,0.41125855,66165.0,66164.0,0.000854]
[1729699424992,0.56239555,66165.0,66164.0,0.000854]
[1729699426728,0.56238731,66165.0,66164.0,0.000854]
[1729699428256,0.56403531,66165.0,66164.0,0.000854]
[1729699429346,0.46403531,66165.0,66164.0,0.000854]
[1729699430874,0.31289831,66165.0,66164.0,0.015854]
[1729699431096,0.31289831,66165.0,66164.0,0.092054]
[1729699432000,0.46403531,66165.0,66164.0,0.092054]
[1729699432214,0.46403531,66165.0,66164.0,0.010854]
[1729699432707,0.46403531,66165.0,66164.0,0.005854]
[1729699432916,0.61453912,66165.0,66164.0,0.005854]
[1729699433123,0.71453912,66165.0,66164.0,0.000854]
[1729699434053,0.71921329,66165.0,66164.0,0.000854]
[1729699434275,0.76438066,66165.0,66164.0,0.000854]
[1729699434906,0.8164343,66165.0,66164.0,0.000854]
[1729699435121,0.8144343,66165.0,66164.0,0.000854]
[1729699435554,0.81448122,66165.0,66164.0,0.000854]
[1729699436634,0.81647307,66165.0,66164.0,0.000854]
[1729699437058,0.83747307,66165.0,66164.0,0.000854]
[1729699437978,0.79242758,66165.0,66164.0,0.000854]
[1729699438227,0.79442758,66165.0,66164.0,0.000854]
[1729699438470,1.01321471,66165.0,66164.0,0.000854]
[1729699438715,0.96816922,66165.0,66164.0,0.000854]
[1729699438928,1.13866163,66165.0,66164.0,0.000854]
[1729699439152,1.15195453,66165.0,66164.0,0.000854]
[1729699439379,1.45392277,66165.0,66164.0,0.000854]
[1729699439627,1.45192277,66165.0,66164.0,0.000854]
[1729699439874,1.45392277,66165.0,66164.0,0.000854]
[1729699440087,0.281144,66162.0,66161.0,4e-05]
[1729699440400,0.48810808,66162.0,66161.0,4e-05]
[1729699440644,0.48810808,66162.0,66149.0,0.000854]
[1729699440645,0.42691264,66150.0,66149.0,0.000854]
[1729699440902,0.63387672,66150.0,66149.0,0.000854]
[1729699441555,0.63386936,66150.0,66149.0,0.000854]
[1729699442208,0.6385576,66150.0,66149.0,0.000854]
[1729699443126,0.81429924,66150.0,66149.0,0.000854]
[1729699443351,0.7458576,66150.0,66149.0,0.000854]
[1729699443761,0.6385576,66150.0,66149.0,0.000854]
[1729699444971,0.58870199,66150.0,66149.0,0.000854]
[1729699445230,0.57741645,66150.0,66149.0,0.000854]
[1729699445478,0.58868594,66150.0,66149.0,0.000854]
[1729699449144,0.4129443,66150.0,66149.0,0.000854]
[1729699449382,0.16244049,66150.0,66149.0,0.005854]
[1729699449601,0.01126949,66150.0,66149.0,0.081954]
[1729699449818,0.16244049,66150.0,66149.0,0.081954]
[1729699450493,0.01126949,66150.0,66149.0,0.081954]
[1729699450933,0.16244049,66150.0,66149.0,0.081954]
[1729699451163,0.01126949,66150.0,66149.0,0.081954]
[1729699451419,0.01126949,66150.0,66149.0,0.091954]
[1729699452115,0.01126949,66150.0,66149.0,0.243127]
[1729699452556,0.01126949,66150.0,66149.0,0.091954]
[1729699452769,0.01125682,66150.0,66149.0,0.091954]
[1729699453209,0.01125682,66150.0,66149.0,0.243127]
[1729699453459,0.01125682,66150.0,66149.0,0.091954]
[1729699455444,0.16242782,66150.0,66149.0,0.091954]
[1729699455927,0.41487784,66150.0,66149.0,0.005854]
[1729699456140,0.16242782,66150.0,66149.0,0.005854]
[1729699456351,0.01125682,66150.0,66149.0,0.015854]
[1729699457050,0.01125682,66150.0,66144.0,0.15664]
[1729699457268,0.01125682,66149.0,66145.0,0.302363]
[1729699457482,0.151165,66153.0,66146.0,0.09972766]
[1729699457699,0.01126337,66152.0,66146.0,0.09972766]
[1729699457916,0.01126337,66151.0,66146.0,0.09972766]
[1729699458159,0.01126337,66150.0,66146.0,0.09972766]
[1729699458371,0.01126337,66149.0,66144.0,0.15664]
[1729699458586,0.01126337,66148.0,66145.0,0.151181]
[1729699458805,0.22659637,66155.0,66144.0,0.15664]
[1729699458806,0.01126337,66152.0,66144.0,0.15664]
[1729699459020,0.01126337,66151.0,66144.0,0.15664]
[1729699459237,0.01126337,66150.0,66144.0,0.307824]
[1729699459692,0.01126337,66149.0,66144.0,0.15664]
[1729699459911,0.01126337,66148.0,66144.0,0.307825]
[1729699460365,0.01126337,66147.0,66144.0,0.15664]
[1729699460588,0.22659637,66155.0,66144.0,0.15664]
[1729699460589,0.01126337,66152.0,66145.0,0.151182]
[1729699460811,0.01126337,66151.0,66145.0,0.302365]
[1729699461030,0.22659637,66155.0,66145.0,0.302365]
[1729699461031,0.01126337,66150.0,66145.0,0.151181]
[1729699461279,0.01126337,66149.0,66145.0,0.151181]
[1729699461485,0.01126337,66148.0,66145.0,0.151181]
[1729699461697,0.01126337,66147.0,66144.0,0.15664]
[1729699461907,0.01126337,66146.0,66144.0,0.15664]
[1729699462118,0.16242537,66154.0,66145.0,0.151183]
[1729699462345,0.22659637,66146.0,66144.0,0.15664]
[1729699462583,0.01126337,66145.0,66144.0,4e-05]
[1729699463301,0.01126337,66145.0,66144.0,0.151225]
[1729699463521,0.01126337,66145.0,66144.0,0.000865]
[1729699464752,0.01126337,66145.0,66144.0,0.15205]
[1729699465024,0.001648,66162.0,66153.0,0.151164]
[1729699465025,0.23785974,66154.0,66153.0,0.151164]
[1729699465268,0.23785974,66154.0,66149.0,0.302347]
[1729699465269,0.23785974,66154.0,66152.0,0.151166]
[1729699465517,0.01126337,66153.0,66152.0,0.151166]
[1729699466481,0.151148,66160.0,66151.0,0.151169]
[1729699466960,0.0112654,66159.0,66151.0,0.151169]
[1729699467239,0.0112654,66159.0,66155.0,0.151159]
[1729699467497,0.0112654,66159.0,66152.0,0.377333]
[1729699467753,0.0112654,66158.0,66155.0,0.151158]
[1729699468006,0.0112654,66158.0,66152.0,0.075]
[1729699468244,0.0112654,66157.0,66153.0,0.151164]
[1729699468493,0.0112654,66156.0,66152.0,0.075]
[1729699468730,0.0112654,66155.0,66154.0,0.151162]
[1729699468995,0.0112654,66155.0,66154.0,0.33492661]
[1729699469236,0.0112654,66161.0,66156.0,0.156157]
[1729699469465,0.001648,66162.0,66156.0,0.156157]
[1729699469466,0.0112654,66160.0,66157.0,0.151155]
[1729699469654,0.0112654,66159.0,66157.0,0.151155]
[1729699469945,0.0112654,66158.0,66157.0,0.151155]
[1729699470204,0.0112654,66158.0,66156.0,0.005]
[1729699470463,0.0112654,66158.0,66157.0,0.151155]
[1729699470726,0.001648,66162.0,66157.0,0.151155]
[1729699470981,0.01126245,66158.0,66157.0,0.151155]
[1729699471185,0.001648,66162.0,66159.0,0.15115]
[1729699471404,0.01126288,66161.0,66157.0,0.453461]
[1729699471629,0.01126288,66160.0,66157.0,0.151154]
[1729699471862,0.01126288,66159.0,66158.0,0.151152]
[1729699472318,0.01126288,66159.0,66157.0,0.151154]
[1729699472539,0.01126288,66158.0,66156.0,0.005]
[1729699472778,0.01126288,66157.0,66156.0,0.156157]
[1729699472996,0.01126288,66161.0,66156.0,0.156157]
[1729699473213,0.01126288,66160.0,66156.0,0.005]
[1729699473456,0.01126288,66159.0,66152.0,0.075]
[1729699473674,0.16241388,66159.0,66152.0,0.075]
[1729699473895,0.01127242,66158.0,66152.0,0.075]
[1729699474118,0.151167,66152.0,66144.0,0.401649]
[1729699474343,0.41361043,66157.0,66144.0,0.000865]
[1729699474344,0.01127242,66151.0,66144.0,0.000865]
[1729699474564,0.40233801,66157.0,66144.0,0.000865]
[1729699474565,0.01127242,66150.0,66144.0,0.000865]
[1729699474822,0.16244542,66149.0,66144.0,0.000865]
[1729699475019,0.16244542,66149.0,66146.0,0.03]
[1729699475235,0.01127242,66148.0,66146.0,0.03]
[1729699475452,0.01127242,66147.0,66146.0,0.03]
[1729699476108,0.16245042,66147.0,66146.0,0.03]
[1729699476764,0.20908666,66147.0,66146.0,0.03]
[1729699477489,0.20908666,66147.0,66131.0,0.000855]
[1729699477490,0.517308,66134.0,66131.0,0.000855]
[1729699477720,0.67004964,66134.0,66131.0,0.000855]
[1729699477950,0.68632293,66134.0,66131.0,0.000855]
[1729699478184,0.75387853,66134.0,66131.0,0.000855]
[1729699478404,0.79894374,66134.0,66131.0,0.000855]
[1729699478618,0.75383842,66134.0,66131.0,0.000855]
[1729699478841,0.7361471,66134.0,66131.0,0.000855]
[1729699479102,0.6911393,66134.0,66131.0,0.000855]
[1729699479369,0.73614542,66134.0,66131.0,0.000855]
[1729699479581,0.6911393,66134.0,66131.0,0.000855]
[1729699480955,0.72483293,66134.0,66131.0,0.000855]
[1729699481194,0.7360705,66134.0,66131.0,0.000855]
[1729699481430,0.69110358,66134.0,66131.0,0.000855]
[1729699482404,0.88824363,66134.0,66131.0,0.000855]
[1729699482668,0.89024363,66134.0,66131.0,0.000855]
[1729699483160,0.88824363,66134.0,66131.0,0.000855]
[1729699485256,0.73203563,66134.0,66131.0,0.000855]
[1729699485477,0.26174138,66134.0,66131.0,0.000855]
[1729699486826,0.26170594,66134.0,66131.0,0.000855]
[1729699488184,0.26170594,66134.0,66133.0,0.000865]
[1729699491546,0.25050381,66134.0,66133.0,0.000865]
[1729699491785,0.32433318,66134.0,66133.0,0.000865]
[1729699492184,0.33552879,66134.0,66133.0,0.000865]
[1729699493745,0.56852879,66134.0,66133.0,0.000865]
[1729699493984,0.74773679,66134.0,66133.0,0.000865]
[1729699494863,0.72473679,66134.0,66133.0,0.000865]
[1729699497293,0.60272328,66120.0,66119.0,0.000823]
[1729699497544,0.58868106,66120.0,66119.0,0.000823]
[1729699498737,0.43744106,66120.0,66119.0,0.000823]
[1729699498983,0.43744368,66120.0,66119.0,0.000823]
[1729699499963,0.58868368,66120.0,66119.0,0.000823]
[1729699500210,0.51127305,66120.0,66119.0,0.000823]
[1729699501704,0.01119823,66120.0,66119.0,0.152065]
[1729699502197,0.01119823,66129.0,66128.0,0.151221]
[1729699502431,0.01119823,66129.0,66127.0,0.151222]
[1729699502656,0.01119823,66128.0,66119.0,0.000823]
[1729699502875,0.01119823,66127.0,66124.0,0.302457]
[1729699503121,0.15050381,66132.0,66125.0,0.151228]
[1729699503345,0.01122829,66126.0,66125.0,0.151228]
[1729699503591,0.1,66131.0,66127.0,0.302447]
[1729699503830,0.01123889,66130.0,66124.0,0.302461]
[1729699504081,0.01123889,66129.0,66128.0,0.151221]
[1729699504782,0.00469433,66136.0,66126.0,0.302449]
[1729699505018,0.01125181,66129.0,66125.0,0.1678]
[1729699505233,0.17574164,66134.0,66125.0,0.1678]
[1729699505447,0.22659637,66133.0,66125.0,0.1678]
[1729699505673,0.22659637,66133.0,66125.0,0.319027]
[1729699505889,0.22659637,66133.0,66124.0,0.151229]
[1729699506116,0.01125223,66128.0,66126.0,0.302451]
[1729699506333,0.01125223,66128.0,66127.0,0.151224]
[1729699506555,0.01125223,66128.0,66125.0,0.151226]
[1729699506765,0.01125223,66127.0,66126.0,0.151225]
[1729699507018,0.01125223,66127.0,66120.0,0.005]
[1729699507491,0.01125223,66126.0,66123.0,0.151232]
[1729699507747,0.01125223,66125.0,66123.0,0.151232]
[1729699507976,0.37780637,66133.0,66124.0,0.151231]
[1729699508211,0.01128019,66132.0,66125.0,0.151228]
[1729699508454,0.01128019,66132.0,66121.0,0.302474]
[1729699508455,0.01127976,66132.0,66124.0,0.15123]
[1729699508702,0.22659637,66133.0,66120.0,0.005]
[1729699508913,0.22659637,66133.0,66127.0,0.151223]
[1729699509131,0.22659637,66133.0,66128.0,0.15122]
[1729699509346,0.22659637,66133.0,66125.0,0.151227]
[1729699509670,0.1,66135.0,66128.0,0.00122]
[1729699509892,0.151211,66133.0,66124.0,0.151229]
[1729699510117,0.37710018,66134.0,66120.0,0.005]
[1729699510320,0.37710018,66134.0,66121.0,0.302475]
[1729699510520,0.37710018,66134.0,66122.0,0.302471]
[1729699510726,0.151214,66132.0,66123.0,0.151233]
[1729699510928,0.151214,66132.0,66124.0,0.15123]
[1729699511137,0.151216,66131.0,66122.0,0.453705]
[1729699511338,0.67951918,66134.0,66122.0,0.453705]
[1729699511339,0.37710018,66134.0,66122.0,0.302471]
[1729699511548,0.37710018,66134.0,66121.0,0.151237]
[1729699511549,0.151219,66129.0,66121.0,0.151237]
[1729699511749,0.37710018,66134.0,66122.0,0.302471]
[1729699511972,0.37710018,66134.0,66120.0,0.005]
[1729699512195,0.37710018,66134.0,66128.0,0.151221]
[1729699512424,0.10165,66135.0,66128.0,0.151221]
[1729699512425,0.00165,66135.0,66128.0,0.17574164]
[1729699512652,0.22659637,66133.0,66132.0,0.151212]
[1729699512850,0.00165,66135.0,66129.0,0.151219]
[1729699513067,0.00165,66135.0,66127.0,0.302445]
[1729699513518,0.00165,66135.0,66124.0,0.17574164]
[1729699513940,0.22659637,66134.0,66125.0,0.151228]
[1729699514139,0.22659637,66134.0,66129.0,0.151218]
[1729699514459,0.22659637,66134.0,66128.0,0.151221]
[1729699514680,0.22659637,66134.0,66124.0,0.30246]
[1729699514909,0.22659637,66134.0,66121.0,0.151237]
[1729699515125,0.55284182,66134.0,66120.0,0.307476]
[1729699515339,0.55284182,66134.0,66114.0,0.005]
[1729699515340,0.15124,66120.0,66114.0,0.005]
[1729699515548,0.15124,66120.0,66113.0,0.151255]
[1729699515765,0.15124,66120.0,66115.0,0.15125]
[1729699516070,0.302464,66124.0,66116.0,0.151248]
[1729699516219,0.15124,66120.0,66114.0,0.151252]
[1729699516434,0.15124,66120.0,66112.0,0.005]
[1729699516645,0.15124,66120.0,66113.0,0.005]
[1729699516847,0.302471,66122.0,66114.0,0.005]
[1729699516848,0.151236,66122.0,66114.0,0.005]
[1729699517063,0.15124,66120.0,66114.0,0.005]
[1729699517543,0.15124,66120.0,66113.0,0.151254]
[1729699517769,0.15124,66120.0,66109.0,0.302527]
[1729699517970,0.15124,66120.0,66110.0,0.156262]
[1729699518189,0.15124,66120.0,66111.0,0.15626]
[1729699518407,0.15124,66120.0,66111.0,0.005]
[1729699518822,0.15124,66120.0,66112.0,0.302514]
[1729699519031,0.302466,66123.0,66114.0,0.005]
[1729699519239,0.302471,66122.0,66115.0,0.302502]
[1729699519449,0.15124,66120.0,66114.0,0.005]
[1729699519655,0.15124,66120.0,66114.0,0.156253]
[1729699519871,0.15124,66120.0,66114.0,0.005]
[1729699520092,0.15124,66120.0,66115.0,0.15125]
[1729699520307,0.16250338,66120.0,66114.0,0.156253]
[1729699521142,0.16250338,66120.0,66114.0,0.005]
[1729699521789,0.16250338,66120.0,66114.0,0.156252]
[1729699522885,0.16250338,66120.0,66109.0,0.302528]
[1729699523099,0.16250338,66120.0,66111.0,0.005]
[1729699523313,0.16250338,66120.0,66109.0,0.302528]
[1729699523314,0.17377256,66120.0,66112.0,0.005]
[1729699523538,0.16250918,66120.0,66111.0,0.15126]
[1729699523789,0.16250918,66120.0,66108.0,1.0]
[1729699524053,0.302511,66114.0,66108.0,1.127945]
[1729699524275,0.151261,66111.0,66108.0,0.976678]
[1729699524503,0.16253418,66110.0,66108.0,0.976678]
[1729699524744,0.01126918,66109.0,66108.0,0.976678]
[1729699525703,0.16253418,66109.0,66108.0,0.976678]
[1729699526151,0.01126918,66109.0,66108.0,0.976678]
[1729699526394,0.16253418,66109.0,66108.0,0.976678]
[1729699527553,0.47751045,66109.0,66108.0,0.976678]
[1729699527788,0.48877356,66109.0,66108.0,0.976678]
[1729699531781,0.49901185,66109.0,66108.0,0.976678]
[1729699533328,0.59901185,66109.0,66108.0,0.976678]
[1729699534416,0.2727664,66109.0,66108.0,0.976678]
[1729699534632,0.2727664,66109.0,66108.0,0.977501]
[1729699534633,0.0215014,66109.0,66108.0,0.977501]
[1729699534854,0.26150329,66109.0,66108.0,0.977501]
[1729699535068,0.12312631,66109.0,66108.0,0.977501]
[1729699535522,0.27439131,66109.0,66108.0,0.977501]
[1729699535943,0.02312631,66109.0,66108.0,0.977501]
[1729699536158,0.17439131,66109.0,66108.0,0.977501]
[1729699536614,0.02312631,66109.0,66108.0,0.977501]
[1729699536825,0.01264688,66109.0,66108.0,0.977501]
[1729699537055,0.17819234,66109.0,66108.0,0.977501]
[1729699537271,0.16391188,66109.0,66108.0,0.977501]
[1729699537480,0.17819234,66109.0,66108.0,0.977501]
[1729699537932,0.02692734,66109.0,66108.0,0.977501]
[1729699538574,0.16391188,66109.0,66108.0,0.977501]
[1729699538799,0.17819234,66109.0,66108.0,0.977501]
[1729699539012,0.02692734,66109.0,66108.0,0.977501]
[1729699539247,0.01568532,66109.0,66108.0,0.977501]
[1729699539485,0.02693046,66109.0,66108.0,0.977501]
[1729699539685,0.17819546,66109.0,66108.0,0.977501]
[1729699540654,0.3539371,66109.0,66108.0,0.977501]
[1729699541351,0.60444091,66109.0,66108.0,0.977501]
[1729699545786,0.6015815,66109.0,66108.0,0.977501]
[1729699547816,0.6032275,66109.0,66108.0,0.977501]
[1729699550059,0.59198236,66109.0,66108.0,0.977501]
[1729699550704,0.60325028,66109.0,66108.0,0.977501]
[1729699552243,0.42750864,66109.0,66108.0,0.977501]
[1729699553783,0.41624072,66109.0,66108.0,0.977501]
[1729699554023,0.4275221,66109.0,66108.0,0.977501]
[1729699558227,0.02575329,66109.0,66108.0,0.977501]
[1729699558461,0.17701829,66109.0,66108.0,0.977501]
[1729699559401,0.02575329,66109.0,66108.0,0.977501]
[1729699560077,0.01292738,66109.0,66108.0,0.977501]
[1729699560307,0.0257851,66109.0,66108.0,1.128768]
[1729699560516,0.01292738,66109.0,66108.0,0.977501]
[1729699560733,0.0257851,66109.0,66108.0,0.977501]
[1729699560969,0.1770501,66109.0,66108.0,0.977501]